[Event "Marshall CC FIDE Premier April 2024"]
[Site "New York"]
[Date "2024.04.13"]
[Round "2.10"]
[White "Dong, Kyle Qiyu"]
[Black "Shvarts, Tim"]
[Result "0-1"]
[ECO "A38"]
[WhiteElo "1972"]
[BlackElo "1783"]
[Annotator "TA"]
[PlyCount "124"]
[EventDate "2024.02.02"]
[EventType "swiss"]
[EventCountry "USA"]
[SourceTitle "playchess.com"]
[Source "ChessBase"]
[SourceQuality "1"]
[TimeControl "5400+30"]

{[%evp 19,124,20,20,20,46,37,41,27,8,8,8,0,22,-28,-19,-58,-61,-87,-8,-8,-10,-33,-27,-22,-22,-31,-40,-61,-70,-120,-78,-91,0,-17,-12,-79,0,0,0,-23,44,40,28,0,47,11,28,0,91,89,91,42,294,316,274,206,397,393,372,275,277,265,297,280,405,412,411,180,171,79,74,79,165,139,182,182,204,235,235,235,248,165,254,134,5340,5327,5158,1370,5165,1822,5306,8,8,-12804,-5089,-29984,8,-29985,-29986,-29986,-29987,-29987,-29988,-29994,-29995,-29995,-29996]} 1. c4 {[%emt 0:07:23]} c5 {[%emt 0:00:23]} 2. g3 {[%emt 0:00:09]} Nf6 {[%emt 0:00:18]} 3. Bg2 {[%emt 0:00:10]} g6 {[%emt 0:00:09]} 4. Nc3 {[%emt 0:00:34]} Nc6 {[%emt 0:00:05]} 5. Nf3 {[%emt 0:01:55]} Bg7 {[%emt 0:00:07]} 6. d4 {[%emt 0:00:05]} cxd4 {[%emt 0:00:03]} 7. Nxd4 {[%emt 0:00:02]} O-O {[%emt 0:00:13]} 8. O-O {[%emt 0:00:24]} Qa5 {[%emt 0:00:03]} 9. Nc2 {[%emt 0:00:05]} d6 {[%emt 0:00:51]} 10. Bd2 {[%emt 0:00:15]} Qh5 {[%emt 0:01:54]} 11. e4 {[%emt 0:00:07]} Bg4 {[%emt 0:12:58]} 12. f3 {[%emt 0:03:18]} Bh3 {[%emt 0:05:41]} 13. Be3 {[%emt 0:07:46] White is slightly better.} Bxg2 {[%emt 0:00:54]} 14. Kxg2 {[%emt 0:00:03]} Rac8 {[%emt 0:01:59]} 15. Qd2 {[%emt 0:07:14]} Rfd8 {[%emt 0:06:12]} 16. Nd5 {[%emt 0:17:52]} (16. Rad1 $142) 16... e6 $11 {[%emt 0:09:20]} 17. Nf4 {[%emt 0:09:33]} Qa5 {[%emt 0:00:47]} 18. Rfd1 {[%emt 0:00:26]} Qxd2+ {[%emt 0:18:49]} ({Better is} 18... g5 $1 $17 {[%cal Rg5f4]} 19. Ne2 g4 20. Qxa5 Nxa5) 19. Rxd2 {[%emt 0:01:00]} Ne5 {[%emt 0:01:38]} (19... g5 $5 20. Nd3 $8 g4 $11) 20. b3 {[%emt 0:00:48][%cal Oh2h4]} g5 {[%emt 0:01:14]} 21. Nd3 {[%emt 0:02:15] [#]} Nxf3 {[%emt 0:00:21]} 22. Kxf3 {[%emt 0:01:48][%cal Od3f2] Nf2! would now be deadly.} g4+ {[%emt 0:00:11]} 23. Kg2 {[%emt 0:00:09]} Nxe4 {[%emt 0:00:05]} 24. Rad1 {[%emt 0:13:48]} (24. Re1 $15) 24... Nxd2 {[%emt 0:00:14]} 25. Rxd2 {[%emt 0:00:10]} b6 {[%emt 0:01:53]} (25... d5 $17 26. cxd5 Rxd5) 26. Ndb4 {[%emt 0:04:53]} Rd7 {[%emt 0:04:18]} 27. Nd4 {[%emt 0:03:25]} (27. h3 $11) 27... Bf8 {[%emt 0:33:20]} (27... a5 $1 $17 {[%cal Ra5b4]} 28. Nbc2 d5) 28. Nd3 {[%emt 0:01:30]} a6 {[%emt 0:00:00]} 29. a4 {[%emt 0:03:14]} Be7 {[%emt 0:00:00]} (29... Bg7 $11) 30. Ne2 $36 {[%emt 0:03:17][%cal Od3e5][%mdl 3072] White has compensation. White is more active.} Rb7 {[%emt 0:00:00]} 31. Nd4 {[%emt 0:01:52]} Kg7 {[%emt 0:00:00]} (31... Rd7 $11 {is more appropriate.}) 32. Re2 {[%emt 0:03:03]} Bf6 {[%emt 0:00:00]} 33. Nb4 {[%emt 0:01:33]} Bxd4 {[%emt 0:00:00]} (33... Be7 $11 {keeps the balance.}) 34. Bxd4+ $16 {[%emt 0:00:02]} e5 {[%emt 0:00:00]} 35. Bf2 {[%emt 0:00:33]} ({White should try} 35. Bg1 $16) 35... b5 $2 {[%emt 0:00:00][%mdl 8192] [#]} (35... Ra8 $1 $14) 36. cxb5 $1 $18 {[%emt 0:00:06]} (36. Nxa6 $2 bxa4 (36... bxc4 $2 37. b4 $19) 37. b4 Rxc4 $19) 36... axb5 {[%emt 0:00:00]} 37. a5 {[%emt 0:00:04][%cal Ba4a5,Ba5a6,Ba6a7][%mdl 32] a6 is the strong threat.} Rc1 $2 {[%emt 0:00:00]} (37... Rbc7 38. a6 Rf8) 38. a6 {[%emt 0:01:32]} Rb8 {[%emt 0:00:00]} 39. a7 {[%emt 0:00:14]} Ra8 {[%emt 0:06:00]} 40. Ra2 {[%emt 0:01:07] Black must now prevent Nd5.} Rc7 {[%emt 0:00:00]} 41. Nd5 {[%emt 0:00:23]} Rd7 {[%emt 0:00:00]} (41... Rb7 {was called for.} 42. Ra6 f5) 42. Bb6 {[%emt 0:00:11]} Rb7 {[%emt 0:00:00]} 43. Nc7 {[%emt 0:00:11]} (43. Kf2 $142) 43... Raxa7 {[%emt 0:00:00]} 44. Bxa7 {[%emt 0:02:20]} (44. Rxa7 $18 {has better winning chances.} Rxb6 45. b4) 44... Rxc7 {[%emt 0:00:00][%mdl 4096] Endgame. KRB-KR} 45. Bb8 {[%emt 0:01:16]} Rd7 {[%emt 0:00:00]} (45... Rc6 $16 {was worth a try.}) 46. Rd2 {[%emt 0:00:12]} Kf6 {[%emt 0:00:00]} 47. Rxd6+ {[%emt 0:02:17]} (47. Bxd6 Ke6 48. Bb4 Rb7 $18) 47... Rxd6 {[%emt 0:00:00]} 48. Bxd6 {[%emt 0:00:02] KB-KP} Ke6 {[%emt 0:00:00]} 49. Bf8 {[%emt 0:00:30]} Kd5 {[%emt 0:00:00]} 50. Ba3 {[%emt 0:02:31]} f5 {[%emt 0:00:22]} (50... Ke4 {keeps fighting.} 51. Bc5 Kd5) 51. Bb2 {[%emt 0:00:44]} b4 $2 {[%emt 0:00:23][%mdl 8192]} (51... Ke4 $16 52. Kf2 Kd5) 52. Kf2 {[%emt 0:00:04]} Ke4 {[%emt 0:00:19]} 53. Ba1 {[%emt 0:00:18]} h5 {[%emt 0:00:10]} 54. Bb2 {[%emt 0:00:14]} (54. Ke2 $142 Kd5 55. Kd3) 54... f4 {[%emt 0:00:33]} 55. gxf4 $2 {[%emt 0:01:24]} (55. Ke2 $18 Kf5 56. Kd3) 55... exf4 $11 {[%emt 0:00:18]} 56. Ke2 {[%emt 0:00:35][%mdl 8192]} (56. Bc1 $11) 56... h4 $19 {[%emt 0:00:36] ( -> ...h3)} (56... g3 57. hxg3 fxg3 58. Bf6 $11) 57. Bf6 {[%emt 0:00:43] [#]} g3 $2 {[%emt 0:01:07]} (57... h3 $1 {mates} 58. Kf2 g3+ 59. hxg3 f3 (59... h2 60. Kg2 $11) 60. Kg1 Ke3 61. Bg5+ Ke2 62. Kh2 f2 63. Kxh3 f1=Q+ (63... f1=R 64. Be7 $11) 64. Kg4 Qf3+ 65. Kh4 Qf5 (65... Qxb3 66. g4 Qc3 67. Be7 Qh8+ 68. Kg5 Qg7+ 69. Kh5 Qxe7 70. Kh6 b3 71. Kg6 b2 72. g5 b1=Q+ 73. Kh5 Qg1 74. Kh6 Qgxg5#) 66. Kh5 Kf3 67. Kh6 Qf7 (67... Kxg3 68. Bc1 Kg4 69. Kg7 Qe6 70. Kf8 Kf5 71. Kg7 Qd7+ 72. Kg8 Kg6 73. Bh6 Qh7+ 74. Kf8 Qf7#) 68. Bh4 Kg4 (68... Qxb3 69. Bf6 $19) 69. Bd8 Kf5 (69... Kxg3 70. Kg5 Qd5+ 71. Kf6 Qxd8+ 72. Kf7 Qd7+ 73. Kg6 Qe7 74. Kf5 Kf3 75. Kg6 Kg4 76. Kh6 Kf5 77. Kh5 Qh7#) 70. g4+ Kxg4 71. Bg5 Kf5 72. Bh4 Qg6#) 58. hxg3 $2 {[%emt 0:00:27][%mdl 8192]} (58. h3 $11 f3+ 59. Ke1 (59. Kf1 Kd3 $11)) 58... f3+ {[%emt 0:01:29] Black mates.} 59. Kf2 {[%emt 0:00:37]} h3 {[%emt 0:00:08]} 60. Kg1 {[%emt 0:00:03]} Ke3 {[%emt 0:00:09]} 61. Bd8 {[%emt 0:00:24]} f2+ {[%emt 0:00:26]} 62. Kf1 {[%emt 0:00:05]} h2 {[%emt 0:05:30] Black used his chance.   Weighted Error Value: White=0.74/Black=0.40.  Loses game:     	---       	Black=2      Mistake:       	White=6     	Black=10     Inaccurate:     	White=7     	Black=3      OK:         	White=15    	Black=12     Best:        	White=1     	Black=6      Strong:       	White=1     	---        Brilliant:      	---       	Black=1} 0-1

[Event "Marshall CC FIDE Premier April 2024"]
[Site "New York"]
[Date "2024.04.14"]
[Round "3.1"]
[White "Huston, Gus"]
[Black "Putnam, Liam"]
[Result "1/2-1/2"]
[ECO "E12"]
[WhiteElo "2401"]
[BlackElo "2323"]
[Annotator "TA"]
[PlyCount "107"]
[EventDate "2024.02.02"]
[EventType "swiss"]
[EventCountry "USA"]
[SourceTitle "playchess.com"]
[Source "ChessBase"]
[SourceQuality "1"]
[TimeControl "5400+30"]

{[%evp 20,107,13,10,12,4,16,0,11,0,0,0,0,0,13,-16,21,-4,-11,-31,-28,-29,-29,-64,-58,-60,-60,-54,-50,-67,-57,-54,-34,-30,-28,-22,-21,-28,-4,-18,-18,-18,-5,-40,0,-17,0,0,0,0,0,0,0,-29,-22,-72,0,0,0,0,0,-20,22,20,30,33,55,8,87,8,8,8,8,8,39,8,22,8,8,8,8,8,8,8,8,8,8,8,8,8]} 1. d4 {[%emt 0:10:06]} Nf6 {[%emt 0:00:09]} 2. c4 {[%emt 0:00:02]} e6 {[%emt 0:01:19]} 3. Nf3 {[%emt 0:00:47]} b6 {[%emt 0:04:45]} 4. Bf4 {[%emt 0:00:27]} Bb7 {[%emt 0:01:52]} 5. e3 {[%emt 0:00:07]} Bb4+ {[%emt 0:04:22]} 6. Nbd2 {[%emt 0:00:01]} O-O {[%emt 0:01:03]} 7. a3 {[%emt 0:03:13] E12: Queen's Indian: Unusual White 4th moves, 4 a3, 4 Nc3 Bb7 5 a3 and 4 Nc3 Bb7 .} Bxd2+ {[%emt 0:01:19]} 8. Qxd2 {[%emt 0:02:38]} d6 {[%emt 0:05:35]} 9. h3 $146 {[%emt 0:02:27]} ({Predecessor:} 9. Be2 Nbd7 10. O-O Ne4 11. Qc2 f5 12. Nd2 g5 13. Bg3 Ndf6 14. Nxe4 Nxe4 15. f3 Nxg3 16. hxg3 {0-1 Kavutskiy,K (2383)-Sadilek,P (2327) Titled Tuesday intern op 27th Sep Late blitz 2022 (10)}) 9... Nbd7 {[%emt 0:02:40]} 10. Bh2 {[%emt 0:02:17]} Qe7 {[%emt 0:02:03]} 11. Be2 {[%emt 0:00:41]} a5 {[%emt 0:09:33]} 12. O-O {[%emt 0:01:30]} a4 {[%emt 0:01:13]} 13. Qc2 {[%emt 0:02:37]} Ne4 {[%emt 0:02:29]} 14. Nd2 {[%emt 0:03:14]} Nxd2 {[%emt 0:06:30]} 15. Qxd2 {[%emt 0:00:02]} Qg5 {[%emt 0:00:34]} 16. f3 {[%emt 0:00:47]} e5 {[%emt 0:00:32]} 17. Rae1 {[%emt 0:10:56]} Rfe8 {[%emt 0:04:51]} 18. Bd1 {[%emt 0:00:54]} exd4 {[%emt 0:12:46]} 19. Qxd4 {[%emt 0:00:19]} (19. Bf4 $5 dxe3 20. Bxg5 exd2 21. Rxe8+ Rxe8 22. Bxa4 $17) 19... Qc5 {[%emt 0:00:33]} 20. Bc2 {[%emt 0:09:12]} Ne5 {[%emt 0:01:14]} 21. Qxc5 {[%emt 0:00:08]} bxc5 {[%emt 0:00:12]} 22. Bxe5 {[%emt 0:00:11]} Rxe5 {[%emt 0:00:03]} 23. Rf2 {[%emt 0:01:06]} Bc6 {[%emt 0:00:58]} 24. Rd2 {[%emt 0:02:50]} g6 {[%emt 0:01:39]} 25. Kf2 {[%emt 0:00:21]} Ree8 {[%emt 0:00:47]} 26. Ke2 {[%emt 0:01:33]} Reb8 {[%emt 0:00:42]} 27. Bd1 {[%emt 0:00:16]} Kg7 {[%emt 0:00:40]} 28. Kd3 {[%emt 0:01:20]} Kf6 {[%emt 0:02:05]} 29. Kc3 {[%emt 0:00:27]} Re8 {[%emt 0:00:47]} 30. h4 {[%emt 0:03:30]} Re5 {[%emt 0:00:07]} 31. Bc2 {[%emt 0:02:38]} Rae8 {[%emt 0:00:55]} 32. Rde2 {[%emt 0:01:04]} Rh5 {[%emt 0:00:57]} 33. g3 {[%emt 0:00:27]} Rhe5 {[%emt 0:03:09]} (33... Bxf3 $2 34. Rf2 $18) 34. g4 {[%emt 0:02:06]} Kg7 {[%emt 0:03:23]} (34... Bxf3 $2 35. Rf2 $18) 35. e4 {[%emt 0:01:31]} f6 {[%emt 0:02:17]} 36. b4 {[%emt 0:03:33]} axb3 {[%emt 0:00:25]} 37. Bxb3 {[%emt 0:01:33]} (37. f4 $11 R5e7 (37... bxc2 38. fxe5 Rxe5 39. Rxc2 $11) 38. Kxb3) 37... f5 {[%emt 0:04:53]} ({Black should play} 37... Ra8 $17 38. Kb2 Ree8) 38. gxf5 $11 {[%emt 0:00:17]} gxf5 {[%emt 0:00:05]} 39. Bc2 {[%emt 0:00:07]} fxe4 {[%emt 0:00:48]} 40. Bxe4 {[%emt 0:00:31]} Bd7 {[%emt 0:06:11]} 41. Bd3 {[%emt 0:04:17]} Kf6 {[%emt 0:04:07]} 42. Rxe5 {[%emt 0:00:33]} dxe5 {[%emt 0:00:06]} 43. f4 {[%emt 0:03:59]} (43. Be4 $14) 43... h5 {[%emt 0:05:48]} ({Much weaker is} 43... exf4 44. Rxe8 Bxe8 45. Bxh7 $14) (43... h6 $11 {keeps the balance.}) 44. Rxe5 {[%emt 0:05:37]} ({Better is} 44. fxe5+ $16 Rxe5 45. Rxe5 Kxe5 46. Bg6) 44... Rxe5 $11 {[%emt 0:00:12]} 45. fxe5+ {[%emt 0:00:03]} Kxe5 {[%emt 0:00:04]} 46. Bg6 {[%emt 0:00:07]} Bg4 {[%emt 0:02:36]} 47. a4 {[%emt 0:00:19]} Kd6 $1 {[%emt 0:00:26]} 48. Kd3 {[%emt 0:13:02]} Kc6 $1 {[%emt 0:00:29]} 49. Ke3 {[%emt 0:00:15]} (49. a5 $5 Kb7 $8 50. Ke4 $11) 49... Kb6 {[%emt 0:00:27]} 50. Kf4 {[%emt 0:00:08]} Ka5 {[%emt 0:00:23]} 51. Kg5 {[%emt 0:00:10]} Be2 {[%emt 0:00:26]} 52. Bxh5 {[%emt 0:00:11]} Bxc4 {[%emt 0:00:04]} 53. Bg6 {[%emt 0:07:33]} Be2 $1 {[%emt 0:00:07]} 54. h5 {[%emt 0:01:12]} 1/2-1/2

[Event "Marshall CC FIDE Premier April 2024"]
[Site "New York"]
[Date "2024.04.14"]
[Round "3.2"]
[White "Ayyappan, Santhosh"]
[Black "Muthukumar, Haari"]
[Result "0-1"]
[ECO "D37"]
[WhiteElo "1922"]
[BlackElo "2048"]
[Annotator "RC"]
[PlyCount "132"]
[EventDate "2024.02.02"]
[EventType "swiss"]
[EventCountry "USA"]
[SourceTitle "playchess.com"]
[Source "ChessBase"]
[SourceQuality "1"]
[TimeControl "5400+30"]

1. d4 {[%emt 0:00:01]} d5 {[%emt 0:00:05]} 2. c4 {[%emt 0:00:09]} e6 {[%emt 0:00:01]} 3. Nc3 {[%emt 0:00:16]} a6 {[%emt 0:00:01]} 4. e3 {[%emt 0:00:16]} Nf6 {[%emt 0:00:09]} 5. Nf3 {[%emt 0:01:13]} Nbd7 {[%emt 0:01:27]} 6. Bd3 {[%emt 0:00:18]} dxc4 {[%emt 0:00:12]} 7. Bxc4 {[%emt 0:00:08]} b5 {[%emt 0:00:03]} 8. Bd3 {[%emt 0:00:27]} Bb7 {[%emt 0:00:20]} 9. O-O {[%emt 0:00:40]} c5 {[%emt 0:02:56]} 10. a3 {[%emt 0:03:19]} Rc8 {[%emt 0:01:57]} 11. Be2 {[%emt 0:04:34]} Be7 {[%emt 0:03:35]} 12. dxc5 {[%emt 0:00:47]} Bxc5 {[%emt 0:00:38]} 13. Nd4 {[%emt 0:03:08]} O-O {[%emt 0:02:56]} 14. Bf3 {[%emt 0:01:04]} Bxf3 {[%emt 0:00:31]} 15. Nxf3 {[%emt 0:00:14]} Nb6 {[%emt 0:05:24]} 16. b3 {[%emt 0:01:56]} Qe7 {[%emt 0:03:25]} 17. Bb2 {[%emt 0:00:57]} Rfd8 {[%emt 0:02:02]} 18. Qe2 {[%emt 0:00:17]} Rd7 {[%emt 0:04:13]} 19. e4 {[%emt 0:05:44]} e5 {[%emt 0:05:05]} 20. h3 {[%emt 0:07:05]} Bd4 {[%emt 0:07:17]} 21. Rfc1 {[%emt 0:05:50]} Qe6 {[%emt 0:03:13]} 22. Nd2 {[%emt 0:01:04]} Rdc7 {[%emt 0:03:56]} 23. Qf3 {[%emt 0:01:19]} Nfd7 {[%emt 0:07:38]} 24. Rab1 {[%emt 0:04:21]} Qd6 {[%emt 0:05:49]} 25. Ra1 {[%emt 0:03:56]} Nc5 {[%emt 0:04:40]} 26. Rab1 {[%emt 0:01:17]} Nd3 {[%emt 0:01:47]} 27. Nd5 {[%emt 0:53:40]} Rxc1+ 28. Bxc1 {[%emt 0:00:00]} Nxd5 {[%emt 0:10:56]} 29. Qxd3 {[%emt 0:00:00]} Nc3 {[%emt 0:00:15]} 30. Kf1 {[%emt 0:00:00]} Nxb1 {[%emt 0:00:08]} 31. Qxb1 {[%emt 0:00:00]} Qc5 {[%emt 0:00:33]} 32. Bb2 {[%emt 0:00:00]} Bxf2 {[%emt 0:02:49]} 33. Qd3 {[%emt 0:00:00]} Bd4 {[%emt 0:00:27]} 34. b4 {[%emt 0:00:00]} Qc2 {[%emt 0:00:28]} 35. Qxc2 {[%emt 0:00:00]} Rxc2 {[%emt 0:00:05]} 36. Bxd4 {[%emt 0:00:00]} Rxd2 {[%emt 0:01:51]} 37. Bxe5 {[%emt 0:00:00]} Ra2 {[%emt 0:00:13]} 38. Bd6 {[%emt 0:00:00]} f6 {[%emt 0:00:05]} 39. e5 {[%emt 0:00:00]} fxe5 {[%emt 0:00:01]} 40. Bxe5 {[%emt 0:00:00]} Kf7 {[%emt 0:00:18]} 41. Bd4 {[%emt 0:00:00]} g6 {[%emt 0:00:05]} 42. h4 {[%emt 0:00:00]} Ke6 {[%emt 0:00:14]} 43. g4 {[%emt 0:00:00]} h5 {[%emt 0:00:02]} 44. gxh5 {[%emt 0:00:00]} gxh5 {[%emt 0:00:05]} 45. Bc5 {[%emt 0:00:00]} Kf5 {[%emt 0:00:07]} 46. Bd6 {[%emt 0:00:00]} Kg4 {[%emt 0:00:07]} 47. Be7 {[%emt 0:00:00]} Kf3 {[%emt 0:00:11]} 48. Kg1 {[%emt 0:00:00]} Rxa3 {[%emt 0:00:16]} 49. Bd8 {[%emt 0:00:00]} Re3 {[%emt 0:00:25]} 50. Bb6 {[%emt 0:00:00]} Re1+ {[%emt 0:00:13]} 51. Kh2 {[%emt 0:00:00]} Re4 {[%emt 0:00:05]} 52. Bc5 {[%emt 0:00:00]} Rxh4+ {[%emt 0:00:06]} 53. Kg1 {[%emt 0:00:00]} Rc4 {[%emt 0:00:08]} 54. Be7 {[%emt 0:00:00]} Rc2 {[%emt 0:00:16]} 55. Bf6 {[%emt 0:00:00]} Kg4 {[%emt 0:00:19]} 56. Be7 {[%emt 0:00:00]} h4 {[%emt 0:00:05]} 57. Kh1 {[%emt 0:00:00]} h3 {[%emt 0:00:12]} 58. Bd6 {[%emt 0:00:00]} Rb2 {[%emt 0:00:08]} 59. Kg1 {[%emt 0:00:00]} h2+ {[%emt 0:00:12]} 60. Bxh2 {[%emt 0:00:00]} Rxb4 {[%emt 0:00:05]} 61. Bd6 {[%emt 0:00:00]} Rb2 {[%emt 0:00:09]} 62. Be5 {[%emt 0:00:00]} Rc2 {[%emt 0:00:12]} 63. Bd6 {[%emt 0:00:00]} a5 {[%emt 0:00:07]} 64. Kf1 {[%emt 0:00:00]} Kf3 {[%emt 0:00:10]} 65. Ke1 {[%emt 0:00:00]} Ke3 {[%emt 0:00:06]} 66. Kf1 {[%emt 0:00:00]} Kd3 {[%emt 0:00:07]} 0-1

[Event "Marshall CC FIDE Premier April 2024"]
[Site "New York"]
[Date "2024.04.14"]
[Round "3.3"]
[White "Bonin, Jay"]
[Black "Nkululeko, Nkosi"]
[Result "1/2-1/2"]
[ECO "D26"]
[WhiteElo "2146"]
[BlackElo "1956"]
[Annotator "TA"]
[PlyCount "100"]
[EventDate "2024.02.02"]
[EventType "swiss"]
[EventCountry "USA"]
[SourceTitle "playchess.com"]
[Source "ChessBase"]
[SourceQuality "1"]
[TimeControl "5400+30"]

{[%evp 10,100,25,-18,-16,-16,-16,-14,-13,-24,0,0,0,0,0,0,4,0,6,0,0,-8,0,0,0,-17,57,64,57,52,58,22,21,21,24,19,21,24,22,23,37,45,47,48,49,47,42,34,78,45,46,46,47,41,41,41,48,36,36,36,36,36,36,16,15,15,15,15,13,13,54,9,9,8,8,8,8,8,8,8,8,8,8,-8,-8,-8,0,0,0,0,0,0,0]} 1. d4 {[%emt 0:00:30]} d5 {[%emt 0:04:09]} 2. Nf3 {[%emt 0:00:00]} Nf6 {[%emt 0:00:05]} 3. c4 {[%emt 0:00:00]} dxc4 {[%emt 0:00:16]} 4. e3 {[%emt 0:00:00]} e6 {[%emt 0:00:46]} 5. Bxc4 {[%emt 0:00:00]} c5 {[%emt 0:00:08]} 6. dxc5 {[%emt 0:00:00]} Qxd1+ {[%emt 0:00:10]} 7. Kxd1 {[%emt 0:00:01]} Bxc5 {[%emt 0:00:11]} 8. Nbd2 {[%emt 0:00:09]} a6 {[%emt 0:00:39]} 9. a3 {[%emt 0:00:14]} b5 {[%emt 0:00:11]} 10. Bd3 {[%emt 0:00:04]} Bb7 {[%emt 0:00:07]} 11. b4 {[%emt 0:00:08]} Be7 {[%emt 0:02:11]} 12. Bb2 {[%emt 0:00:26]} Nbd7 {[%emt 0:00:47]} 13. Ke2 {[%emt 0:00:14]} O-O {[%emt 0:02:27]} 14. Nb3 {[%emt 0:00:59]} Rac8 {[%emt 0:02:39]} 15. Na5 {[%emt 0:00:39]} Bd5 {[%emt 0:00:32]} 16. Rac1 {[%emt 0:00:23]} Nb6 {[%emt 0:01:09]} 17. Ne5 {[%emt 0:11:33]} Rxc1 {[%emt 0:10:10]} (17... Bxg2 $11 18. Nec6 Bxc6 19. Nxc6 Bd6) 18. Rxc1 $14 {[%emt 0:00:13]} Rc8 {[%emt 0:00:08]} 19. Nec6 {[%emt 0:03:10]} Bf8 {[%emt 0:04:53]} 20. Bxf6 {[%emt 0:06:33]} gxf6 {[%emt 0:00:18]} 21. e4 {[%emt 0:00:11]} Bxc6 {[%emt 0:00:38]} 22. Rxc6 {[%emt 0:00:06]} Rxc6 {[%emt 0:00:42]} 23. Nxc6 $11 {[%emt 0:00:02][%mdl 4096] Endgame. KBN-KBN} Bd6 {[%emt 0:00:14] Dodges Nb8} 24. g3 {[%emt 0:00:25]} e5 {[%emt 0:18:35]} 25. Na5 {[%emt 0:03:42]} Nd7 {[%emt 0:01:11]} 26. Bc2 {[%emt 0:00:56]} Bc7 {[%emt 0:03:09]} 27. Nc6 {[%emt 0:02:43]} Kf8 {[%emt 0:02:33]} 28. Bb3 {[%emt 0:00:26]} Nb8 {[%emt 0:02:57]} 29. Bd5 {[%emt 0:00:42] White is more active.} Nxc6 {[%emt 0:00:25]} 30. Bxc6 $14 {[%emt 0:00:03] KB-KB} Ke7 {[%emt 0:00:21]} 31. Kd3 {[%emt 0:01:48]} Kd6 {[%emt 0:08:28]} 32. Bd5 {[%emt 0:00:18]} a5 {[%emt 0:01:54]} 33. Bxf7 {[%emt 0:01:27]} axb4 {[%emt 0:01:07]} 34. axb4 {[%emt 0:00:06]} Kc6 {[%emt 0:00:24]} 35. Be8+ {[%emt 0:01:52]} Kb6 {[%emt 0:00:07]} 36. Ke3 {[%emt 0:02:08]} Bd6 {[%emt 0:00:14]} 37. Kf3 {[%emt 0:00:06]} Bxb4 {[%emt 0:00:13]} 38. Kg4 {[%emt 0:00:20]} Be7 {[%emt 0:11:51]} 39. Kf5 {[%emt 0:02:39]} b4 {[%emt 0:00:22]} 40. Ba4 {[%emt 0:01:24]} Kc5 {[%emt 0:01:08] The position is equal.} 41. Ke6 {[%emt 0:01:44]} Bd8 {[%emt 0:00:02]} 42. Kd7 {[%emt 0:01:37]} Bb6 {[%emt 0:00:08]} 43. Ke7 {[%emt 0:01:48]} Kd4 {[%emt 0:00:28]} 44. f3 {[%emt 0:06:44]} Ke3 {[%emt 0:02:19]} 45. Kxf6 {[%emt 0:04:00]} Kxf3 {[%emt 0:00:11]} 46. Bc2 {[%emt 0:02:05]} Bg1 {[%emt 0:00:27]} 47. h4 {[%emt 0:00:44]} Be3 {[%emt 0:04:17]} 48. Kxe5 {[%emt 0:01:49]} Kxg3 {[%emt 0:00:12]} 49. h5 {[%emt 0:00:21]} Kh4 {[%emt 0:00:19]} 50. Bd1 {[%emt 0:00:14]} b3 {[%emt 0:00:17] Weighted Error Value: White=0.07 (flawless) /Black=0.06 (flawless) .  Mistake:       	---       	Black=1      Inaccurate:     	White=3     	Black=2      OK:         	White=19    	Black=16     Best:        	---       	Black=4} 1/2-1/2

[Event "Marshall CC FIDE Premier April 2024"]
[Site "New York"]
[Date "2024.04.14"]
[Round "3.4"]
[White "Ho, Carter"]
[Black "Goodrich, Elliott"]
[Result "1-0"]
[ECO "C55"]
[WhiteElo "2108"]
[BlackElo "1921"]
[Annotator "TA"]
[PlyCount "59"]
[EventDate "2024.02.02"]
[EventType "swiss"]
[EventCountry "USA"]
[SourceTitle "playchess.com"]
[Source "ChessBase"]
[SourceQuality "1"]
[TimeControl "5400+30"]

{[%evp 13,59,29,49,30,31,31,35,43,38,29,62,64,88,83,91,81,95,87,171,142,138,81,93,99,96,73,67,57,189,200,197,214,247,239,262,241,319,302,404,384,468,408,866,967,979,966,971,960]} 1. e4 {[%emt 0:00:25]} e5 {[%emt 0:00:03]} 2. Nf3 {[%emt 0:00:13]} Nc6 {[%emt 0:00:04]} 3. Bc4 {[%emt 0:00:07]} Nf6 {[%emt 0:00:05]} 4. d3 {[%emt 0:00:04]} h6 {[%emt 0:00:06]} 5. O-O {[%emt 0:00:45]} d6 {[%emt 0:00:06]} 6. c3 {[%emt 0:00:19]} g6 {[%emt 0:00:20]} 7. Nbd2 {[%emt 0:02:03]} Bg7 {[%emt 0:00:08]} 8. a4 {[%emt 0:01:25]} O-O {[%emt 0:00:24]} 9. b4 {[%emt 0:01:17]} d5 {[%emt 0:05:23]} 10. exd5 {[%emt 0:05:37] White is slightly better.} Nxd5 {[%emt 0:00:10]} 11. Ne4 {[%emt 0:01:12]} Nb6 {[%emt 0:03:55]} 12. Bb3 {[%emt 0:02:01] White is more active.} a6 {[%emt 0:02:56]} 13. Be3 {[%emt 0:04:21]} Nd5 {[%emt 0:02:01] [#]} 14. Bxd5 $1 {[%emt 0:10:51]} Qxd5 {[%emt 0:00:14] [#]} 15. Bxh6 $1 {[%emt 0:00:39]} f5 {[%emt 0:03:23]} (15... Bf5 $16 16. Qc2 Rad8) 16. c4 {[%emt 0:04:55]} Qd7 {[%emt 0:04:39]} 17. Nc5 {[%emt 0:00:52]} ({White should try} 17. Bxg7 Qxg7 18. Neg5) 17... Qd6 $16 {[%emt 0:00:15]} 18. Bxg7 {[%emt 0:06:57]} Kxg7 {[%emt 0:00:12]} 19. Re1 {[%emt 0:08:14]} b6 {[%emt 0:04:52]} 20. Nb3 {[%emt 0:01:14]} Nxb4 {[%emt 0:05:07] Loses the game.} (20... Re8 $14) 21. Nxe5 $18 {[%emt 0:04:24]} Bb7 {[%emt 0:01:53]} 22. Qd2 {[%emt 0:03:31]} a5 {[%emt 0:02:11]} 23. Qc3 {[%emt 0:01:45]} Qf6 {[%emt 0:01:44]} 24. d4 {[%emt 0:05:48]} Rad8 {[%emt 0:00:00] Prevents Nd7.} 25. d5 {[%emt 0:01:42]} c6 {[%emt 0:03:56]} 26. Nd4 {[%emt 0:03:48] A dynamic duo of knights.} cxd5 {[%emt 0:05:49]} 27. Ne6+ {[%emt 0:01:33]} Qxe6 {[%emt 0:00:06]} (27... Kg8 $142) 28. Nd7+ {[%emt 0:00:04] White is clearly winning.} d4 {[%emt 0:00:14]} 29. Qxd4+ {[%emt 0:00:12]} Qf6 {[%emt 0:00:21]} 30. Re7+ {[%emt 0:00:08] Weighted Error Value: White=0.11 (very precise) /Black=0.37.  Mistake:       	White=1     	Black=3      Inaccurate:     	---       	Black=3      OK:         	White=10    	Black=5      Best:        	White=2     	Black=1      Strong:       	White=2     	---} (30. Nxf6 $2 {loses.} Rxd4 $19) 1-0